Cogmind - Beta 13 @@@ ROGUE MODE // 2024.04.11 @ 01:59:26 Player: Xidas Result: Self-destructed Performance ------------- Evolutions (2) 1000 Regions Visited (7) 1400 Robots Destroyed (45) 225 Value Destroyed (1152) 1152 Prototype IDs (25) 500 Alien Tech Used (0) 0 Bonus (300) 300 TOTAL SCORE: 4577 Bonus ------- Aligned with FarCom 300 Cogmind --------- Core Integrity 216/550 Matter 264/300 Energy 490/490 System Corruption 0% Temperature Cool (64) Movement Treading (170) Location -8/Materials Parts ------- > --- POWER (1) -------- Reinforced Deuterium Engine > --- PROPULSION (3) --- Armored Treads > --- UTILITY (5) ------ Large Battery Advanced Weight Redist. System Signal Interpreter > --- WEAPON (2) ------- (None) > --- INVENTORY (5) ---- Improved Deuterium Engine Coolant Injector Advanced Assault Cannon Advanced Assault Cannon Advanced Assault Cannon Peak State ------------ > --- POWER ------------ Reinforced Deuterium Engine > --- PROPULSION ------- Light Treads Armored Treads Armored Treads > --- UTILITY ---------- Medium Storage Unit Large Battery Advanced Weight Redist. System Signal Interpreter Hardened Light Armor Plating > --- WEAPON ----------- YOLO Cannon > --- INVENTORY -------- Titanium Leg Titanium Leg Coolant Injector Coolant Injector Coolant Injector Medium Matter Pod Visual Processing Unit Sensor Array Advanced Assault Cannon Advanced Assault Cannon [Rating: 42] Favorites ----------- Power Ion Engine Engine Ion Engine Power Core Light Nuclear Core Propulsion Aluminum Leg Treads Light Treads Leg Aluminum Leg Utility Medium Storage Unit Device Advanced Weight Redist. System Storage Medium Storage Unit Processor Signal Interpreter Protection Hardened Light Armor Plating Weapon Assault Rifle Energy Cannon YOLO Cannon Ballistic Gun Assault Rifle Build | -11 -10 -10 -9 -9 -9 -8 -8 ------- Run | Yrd Mat Min Mat Min Exi Min Mat Slots Evolved 4 | . . . 2 . . . 2 Power . | . . . . . . . . Propulsion 1 | . . . 1 . . . . Utility 3 | . . . 1 . . . 2 Weapon . | . . . . . . . . Parts Attached 36 | 6 2 2 14 1 1 1 9 Power 6 | 1 . 1 3 . . . 1 Engine 5 | 1 . 1 2 . . . 1 Core 1 | . . . 1 . . . . Reactor . | . . . . . . . . Propulsion 13 | 2 . 1 6 1 . . 3 Treads 4 | . . . 2 . . . 2 Leg 9 | 2 . 1 4 1 . . 1 Wheel . | . . . . . . . . Hover . | . . . . . . . . Flight . | . . . . . . . . Utility 10 | 1 2 . 2 . . . 5 Device 4 | . . . 1 . . . 3 Storage 3 | 1 1 . . . . . 1 Processor 1 | . 1 . . . . . . Hackware . | . . . . . . . . Protection 2 | . . . 1 . . . 1 Artifact . | . . . . . . . . Weapon 7 | 2 . . 3 . 1 1 . Energy Gun . | . . . . . . . . Energy Cannon 1 | . . . . . . 1 . Ballistic Gun 6 | 2 . . 3 . 1 . . Ballistic Cannon . | . . . . . . . . Launcher . | . . . . . . . . Special Weapon . | . . . . . . . . Impact Weapon . | . . . . . . . . Slashing Weapon . | . . . . . . . . Piercing Weapon . | . . . . . . . . Special Melee Weapon . | . . . . . . . . Unidentified Prototypes 2 | . . . 2 . . . . Parts Lost 8 | . . . . . . . 8 Power 1 | . . . . . . . 1 Propulsion 3 | . . . . . . . 3 Utility 3 | . . . . . . . 3 Weapon 1 | . . . . . . . 1 Highest Loss Streak 4 | . . . . . . . 4 To Critical Strikes 1 | . . . . . . . 1 Average Slot Usage (%) 93 | . 93 100 90 100 100 94 85 Engine 7 | . 14 14 7 . . . 7 Core 3 | . . . 3 11 11 11 1 Treads 11 | . . . 1 22 22 22 21 Leg 18 | . 28 28 30 11 11 11 4 Device 2 | . . . 2 . . . 8 Storage 13 | . 17 14 11 11 11 11 15 Processor 10 | . 4 14 11 11 11 11 9 Protection 4 | . . . . 11 11 11 9 Energy Cannon 2 | . . . . . . 4 9 Ballistic Gun 17 | . 28 28 22 22 22 12 . Naked Turns . | . . . . . . . . Heaviest Build 51 | 14 24 19 25 25 26 38 51 Greatest Support 69 | 20 20 20 40 40 40 40 69 Greatest Overweight (x) 4 | 4 1 . . . . . 2 Average Overweight (x) . | 1 . . . . . . . Largest Inventory Capacity 10 | 8 10 10 10 10 10 10 10 Average Capacity 9 | 7 9 10 10 10 10 10 9 Most Carried 10 | 4 10 10 10 9 10 10 10 Average Carried 8 | 2 5 9 9 9 9 8 8 Final Capacity 10 | 8 10 10 10 10 10 10 5 Final Carried 10 | 4 10 10 10 9 9 8 5 Class Distribution -------------------- 60% | Scavenger-Mutant 39% | Mutant Dominant Class ---------------- Mutant | -10/Materials Mutant | -10/Mines Scavenger-Mutant | -9/Materials Scavenger-Mutant | -9/Mines Scavenger-Mutant | -9/Exiles Scavenger-Mutant | -8/Mines Scavenger-Mutant | -8/Materials Resources | -11 -10 -10 -9 -9 -9 -8 -8 ----------- Run | Yrd Mat Min Mat Min Exi Min Mat Matter Collected 1062 | 214 107 114 527 . . . 100 Remotely . | . . . . . . . . Salvage Created 1353 | . 68 87 573 . . . 625 Parts 91 | . 5 4 46 . . . 36 Haulers Intercepted 2 | . . . 2 . . . . Recyclers Shooed 1 | . 1 . . . . . . Parts Field Recycled . | . . . . . . . . Retrieved Matter . | . . . . . . . . Parts Self-Destructed . | . . . . . . . . Prevented . | . . . . . . . . Kills | -11 -10 -10 -9 -9 -9 -8 -8 ------- Run | Yrd Mat Min Mat Min Exi Min Mat Combat Hostiles Destroyed 31 | . 1 2 13 . . . 15 Guns 16 | . 1 2 13 . . . . Cannons 3 | . . . . . . . 3 AOE 8 | . . . . . . . 8 Classes Destroyed 11 | . 2 . 4 . . . 5 Worker 7 | . . . 2 . . . 5 Builder 1 | . . . . . . . 1 Hauler 2 | . . . 2 . . . . Recycler 1 | . . . . . . . 1 Watcher 3 | . 1 . 2 . . . . Swarmer 11 | . . . 7 . . . 4 Grunt 15 | . 1 2 5 . . . 7 Sentry 1 | . . . 1 . . . . Specialist 2 | . . . . . . . 2 Hunter 1 | . . . . . . . 1 Heavy 1 | . . . . . . . 1 Best Kill Streak 12 | . 1 2 6 . . . 12 Combat Bots Only 6 | . 1 2 4 . . . 6 Max Kills in Single Turn 3 | . 1 1 2 . . . 3 Gunslinging . | . . . . . . . . Exploded 2 | . . . . . . . 2 Melee . | . . . . . . . . Uniques/NPCs Destroyed . | . . . . . . . . Combat | -11 -10 -10 -9 -9 -9 -8 -8 -------- Run | Yrd Mat Min Mat Min Exi Min Mat Hostile Shots Fired 171 | . 5 15 79 . . . 72 Missed 46 | . 2 4 21 . . . 19 Damage Taken 1858 | . 38 141 570 . . . 1109 Core 186 | . . . 68 . . . 118 Absorbed by Shields . | . . . . . . . . Core Remaining (%) 94 | 100 . 100 . . . 83 . Volleys Fired 111 | . 10 10 70 . . . 21 Largest 2 | . 2 2 2 . . . 1 Hottest 100 | . 40 40 43 . . . 100 Shots Fired 200 | . 20 20 140 . . . 20 Gun 180 | . 20 20 140 . . . . Cannon 20 | . . . . . . . 20 Launcher . | . . . . . . . . Special . | . . . . . . . . Kinetic 180 | . 20 20 140 . . . . Thermal 20 | . . . . . . . 20 Explosive . | . . . . . . . . Electromagnetic . | . . . . . . . . Robot Hit Streak 11 | . 5 4 11 . . . 10 Robot Miss Streak 8 | . 5 2 8 . . . 3 Penetration Max . | . . . . . . . . Secondary Targets 2 | . . 1 1 . . . . Max Gunslinging Chain 1 | . . 1 1 . . . . Shots Hit Robots 112 | . 10 12 80 . . . 10 Core Hits 55 | . 5 4 28 . . 1 17 Critical Kills 6 | . . 1 1 . . . 4 Critical Parts Destroyed . | . . . . . . . . Critical Strikes 6 | . . 1 1 . . . 4 Meltdown 4 | . . . . . . . 4 Destroy 2 | . . 1 1 . . . . Melee Attacks . | . . . . . . . . Impact . | . . . . . . . . Slashing . | . . . . . . . . Piercing . | . . . . . . . . Sneak Attacks . | . . . . . . . . Combat Hostiles . | . . . . . . . . Follow-up Attacks . | . . . . . . . . Damage Inflicted 3728 | . 142 149 1084 . . 12 2341 Guns 1375 | . 142 149 1084 . . . . Cannons 1015 | . . . . . . . 1015 Explosions 1326 | . . . . . . . 1326 Melee . | . . . . . . . . Ramming 12 | . . . . . . 12 . Kinetic 1375 | . 142 149 1084 . . . . Thermal 2341 | . . . . . . . 2341 Explosive . | . . . . . . . . Electromagnetic . | . . . . . . . . Impact . | . . . . . . . . Slashing . | . . . . . . . . Piercing . | . . . . . . . . Highest Corruption . | . . . . . . . . Average Corruption . | . . . . . . . . Corruption Purged . | . . . . . . . . Corruption Blocked . | . . . . . . . . Overload Shots . | . . . . . . . . Overflow Damage 241 | . . . . . . . 241 Projectiles 159 | . . . . . . . 159 Explosions 82 | . . . . . . . 82 Melee . | . . . . . . . . Knockbacks . | . . . . . . . . Impact . | . . . . . . . . Kinetic . | . . . . . . . . Secondary . | . . . . . . . . Self-Inflicted Damage 224 | . . . . . . . 224 Shots 4 | . . . . . . . 4 Rammed 4 | . . . . . . 4 . Targets Rammed 4 | . . . . . . 4 . Kicked . | . . . . . . . . Crushed . | . . . . . . . . Highest Temperature 233 | . 2 4 24 . . . 233 Average Temperature 65 | . 2 2 6 . . . 77 Received Heat Transfer 498 | . 21 84 177 . . . 216 Effects 1 | . . . . . . . 1 Energy Bleed 1 | . . . . . . . 1 Siege Activations . | . . . . . . . . Robots Corrupted . | . . . . . . . . Combat Hostiles . | . . . . . . . . Parts Fried . | . . . . . . . . Impact Corruptions . | . . . . . . . . Robots Melted 4 | . . . . . . . 4 Combat Hostiles 4 | . . . . . . . 4 Parts Melted 7 | . . . . . . . 7 Heat Transferred 1810 | . . . . . . . 1810 Parts Sabotaged . | . . . . . . . . Parts Stolen . | . . . . . . . . Parts Stripped . | . . . . . . . . Power Chain Reactions . | . . . . . . . . Alert | -11 -10 -10 -9 -9 -9 -8 -8 ------- Run | Yrd Mat Min Mat Min Exi Min Mat Peak Influence 389 | . 63 50 389 91 . . 294 Initial 91 | . . 24 19 91 . . . Average 102 | . 40 21 205 91 . . 159 Maximum Alert Level 1 | . . . 1 . . . 1 Low Security (%) 70 | 100 100 100 41 100 . 100 40 Level 1 29 | . . . 58 . . . 59 Level 2 . | . . . . . . . . Level 3 . | . . . . . . . . Level 4 . | . . . . . . . . Level 5 . | . . . . . . . . High Security . | . . . . . . . . Max Security . | . . . . . . . . Squads Dispatched 7 | . 2 . . . . . 5 Investigation 3 | . . . . . . . 3 Extermination . | . . . . . . . . Reinforcement 4 | . 2 . . . . . 2 Assault . | . . . . . . . . Garrison . | . . . . . . . . Intercept . | . . . . . . . . Searches Triggered . | . . . . . . . . Construction Impeded . | . . . . . . . . Haulers Reinforced . | . . . . . . . . Active Scanning Responses . | . . . . . . . . Cargo Convoy Interrupts . | . . . . . . . . Stealth | -11 -10 -10 -9 -9 -9 -8 -8 --------- Run | Yrd Mat Min Mat Min Exi Min Mat Distress Signals 5 | . . . 3 . . . 2 Communications Jammed . | . . . . . . . . Distress Signals . | . . . . . . . . Times Spotted 56 | . 6 2 23 . . . 25 Peak Tracking Total 6 | . 2 2 6 . . . 6 Tactical Retreats 1 | . . . 1 . . . . Traps | -11 -10 -10 -9 -9 -9 -8 -8 ------- Run | Yrd Mat Min Mat Min Exi Min Mat Traps Triggered 1 | . . . . . . . 1 Indirectly . | . . . . . . . . Trap Hack Attempts . | . . . . . . . . Triggered . | . . . . . . . . Disarmed . | . . . . . . . . Reprogrammed . | . . . . . . . . Reused . | . . . . . . . . Traps Extracted . | . . . . . . . . Installed . | . . . . . . . . Triggered . | . . . . . . . . Machines | -11 -10 -10 -9 -9 -9 -8 -8 ---------- Run | Yrd Mat Min Mat Min Exi Min Mat Machines Disabled 6 | . . . . . . . 6 Max in Single Turn 1 | . . . . . . . 1 Machines Repaired . | . . . . . . . . Machines Dismantled . | . . . . . . . . Machines Sabotaged . | . . . . . . . . Overloaded Fab Kills . | . . . . . . . . Hacking | -11 -10 -10 -9 -9 -9 -8 -8 --------- Run | Yrd Mat Min Mat Min Exi Min Mat Machines Accessed 7 | . 2 . . . 1 . 4 Terminals 4 | . 2 . . . . . 2 Fabricators . | . . . . . . . . Repair Stations 1 | . . . . . . . 1 Recycling Units 1 | . . . . . . . 1 Scanalyzers . | . . . . . . . . Garrison Access . | . . . . . . . . Total Hacks 15 | . 5 . . . 1 . 9 Successful 4 | . 1 . . . 1 . 2 Failed 11 | . 4 . . . . . 7 Catastrophic 1 | . . . . . . . 1 Database Lockouts . | . . . . . . . . Manual 3 | . . . . . 1 . 2 Terminals 10 | . 5 . . . . . 5 Fabricators . | . . . . . . . . Repair Stations 2 | . . . . . . . 2 Recycling Units 2 | . . . . . . . 2 Scanalyzers . | . . . . . . . . Garrison Access . | . . . . . . . . Terminal Hacks 3 | . 1 . . . 1 . 1 Unreport Threat 1 | . . . . . . . 1 Investigation Status 1 | . 1 . . . . . . Derelict Proto ID Bank 1 | . . . . . 1 . . Fabricator Hacks . | . . . . . . . . Repair Station Hacks 1 | . . . . . . . 1 Scan Component 1 | . . . . . . . 1 Recycling Unit Hacks . | . . . . . . . . Scanalyzer . | . . . . . . . . Garrison Access Hacks . | . . . . . . . . Unauthorized Hacks . | . . . . . . . . Terminals . | . . . . . . . . Fabricators . | . . . . . . . . Repair Stations . | . . . . . . . . Recycling Units . | . . . . . . . . Scanalyzers . | . . . . . . . . Garrison Access . | . . . . . . . . Data Cores Recovered . | . . . . . . . . Used . | . . . . . . . . Hacking Detections 6 | . 2 . . . . . 4 Full Trace Events 2 | . . . . . . . 2 Feedback Events . | . . . . . . . . Feedback Blocked . | . . . . . . . . Robot Schematics Acquired . | . . . . . . . . Robots Built . | . . . . . . . . Authchips . | . . . . . . . . Time . | . . . . . . . . Total Robot Build Rating . | . . . . . . . . Part Schematics Acquired . | . . . . . . . . Parts Built . | . . . . . . . . Authchips . | . . . . . . . . Time . | . . . . . . . . Total Part Build Rating . | . . . . . . . . Parts Repaired . | . . . . . . . . Time . | . . . . . . . . Parts Recycled . | . . . . . . . . Recycled Matter . | . . . . . . . . Retrieved Matter . | . . . . . . . . Retrieved Components . | . . . . . . . . Parts Scanalyzed . | . . . . . . . . Part Schematics Acquired . | . . . . . . . . Parts Damaged . | . . . . . . . . Bothacking | -11 -10 -10 -9 -9 -9 -8 -8 ------------ Run | Yrd Mat Min Mat Min Exi Min Mat Used RIF Installer . | . . . . . . . . Robots Hacked . | . . . . . . . . Non-combat . | . . . . . . . . Combat . | . . . . . . . . Robot Hacks Applied . | . . . . . . . . Relay Couplers Released . | . . . . . . . . Fabnet Peak Effective % . | . . . . . . . . Robots Rewired . | . . . . . . . . Allies Hacked . | . . . . . . . . Hacks Repelled . | . . . . . . . . Allies | -11 -10 -10 -9 -9 -9 -8 -8 -------- Run | Yrd Mat Min Mat Min Exi Min Mat Total Allies . | . . . . . . . . Largest Group . | . . . . . . . . Highest-Rated Group . | . . . . . . . . Highest-Rated Ally . | . . . . . . . . Total Orders . | . . . . . . . . Ally Attacks . | . . . . . . . . Total Damage . | . . . . . . . . Kills . | . . . . . . . . Allies Corrupted . | . . . . . . . . Allies Melted . | . . . . . . . . Intel | -11 -10 -10 -9 -9 -9 -8 -8 ------- Run | Yrd Mat Min Mat Min Exi Min Mat Robot Analysis Total . | . . . . . . . . Derelict Logs Recovered 2 | . . 2 . . . . . Drone Launches . | . . . . . . . . Drone Recoveries . | . . . . . . . . Exploration | -11 -10 -10 -9 -9 -9 -8 -8 ------------- Run | Yrd Mat Min Mat Min Exi Min Mat Turns Passed 2747 | 125 317 497 506 72 381 180 669 Spaces Moved 1489 | 61 186 385 204 39 236 108 270 Core 30 | 30 . . . . . . . Treads 680 | . . . 27 39 236 108 270 Legs 779 | 31 186 385 177 . . . . Wheels . | . . . . . . . . Hover . | . . . . . . . . Flight . | . . . . . . . . Fastest Speed 50 | 50 120 120 120 160 160 160 160 Average Speed 146 | 143 132 120 125 160 160 160 189 Slowest Speed 320 | 250 190 120 160 160 160 160 320 Overloaded Moves . | . . . . . . . . Propulsion Burnouts . | . . . . . . . . Robots Hopped . | . . . . . . . . Cave-ins Triggered . | . . . . . . . . Exploration Rate (%) 32 | 6 32 75 18 5 62 28 31 Regions Visited 7 Branch Regions 4 Pre-discovered Areas . | . . . . . . . . Known Exits Taken 6 | . 1 1 1 1 1 1 . Unknown Exits Taken 1 | 1 . . . . . . . Scrap Searched 1 | . . 1 . . . . . Spaces Dug . | . . . . . . . . Terrain Destroyed 164 | . . . . . . . 164 Melee . | . . . . . . . . Projectile 6 | . . . . . . . 6 AOE 158 | . . . . . . . 158 Terrain Rammed . | . . . . . . . . Walls Destroyed . | . . . . . . . . Machines Disabled . | . . . . . . . . Actions | -11 -10 -10 -9 -9 -9 -8 -8 --------- Run | Yrd Mat Min Mat Min Exi Min Mat Total 1830 | 95 236 402 327 49 241 114 366 Wait 127 | 25 31 . 19 10 . . 42 Move 1482 | 60 185 384 203 38 235 107 270 Hop . | . . . . . . . . Pick Up 32 | 4 7 2 6 . 2 . 11 Fast Attach 18 | 6 1 . 5 . . . 6 Attach 6 | . 1 . 2 1 . 1 1 Detach 3 | . . . 1 . . 1 1 Swap 12 | . . 2 7 . 1 . 2 Drop 35 | . 1 4 14 . 3 1 12 Fire 111 | . 10 10 70 . . . 21 Melee . | . . . . . . . . Ram . | . . . . . . . . Kick . | . . . . . . . . Crush 4 | . . . . . . 4 . Escape Stasis . | . . . . . . . . Rewire . | . . . . . . . . Trap . | . . . . . . . . Miscellaneous . | . . . . . . . . Route ------- -11/Scrapyard -10/Materials -10/Mines -9/Materials (discovered 2 exits: Mat / *Min) -9/Mines -9/Exiles -8/Mines -8/Materials (discovered 1 exit: [*Fac]) History --------- Turn | Location | Event 2 | -11/Scrapyard | Met Revision 17 3 | -11/Scrapyard | Discovered new exit (range 15) 126 | -11/Scrapyard | Entered Materials 260 | -10/Materials | Discovered new exit (range 13) 308 | -10/Materials | Build established: Mutant 442 | -10/Materials | Identified exit to Mines 443 | -10/Materials | Entered Mines 501 | -10/Mines | Learned Materials emergency access door positions 513 | -10/Mines | Found a damaged Exp. Sensor Array with a note attached 517 | -10/Mines | Found Prototype Device 540 | -10/Mines | Learned 2 Materials zone layouts 924 | -10/Mines | Discovered new exit (range 11) 939 | -10/Mines | Identified exit to Materials 940 | -10/Mines | Entered Materials 940 | -9/Materials | Evolved 2 slots: Propulsion x1, Utility x1 940 | -9/Materials | Identified Exp. Sensor Array 941 | -9/Materials | Identified exit to Materials 941 | -9/Materials | Identified exit to Mines 1225 | -9/Materials | Build established: Scavenger-Mutant 1446 | -9/Materials | Entered Mines 1463 | -9/Mines | Deemed a non-threat by the Exiles lab entrance 1463 | -9/Mines | Discovered new exit (range 5) 1497 | -9/Mines | Assembled infested the area 1517 | -9/Mines | Identified exit to Exiles 1518 | -9/Mines | Entered Exiles 1563 | -9/Exiles | Met 8R-AWN 1587 | -9/Exiles | Met EX-HEX 1638 | -9/Exiles | Met EX-BIN 1658 | -9/Exiles | Aligned with FarCom system 1659 | -9/Exiles | Given EX-Vault access code 1696 | -9/Exiles | Opened EX-Vault 1708 | -9/Exiles | Found YOLO Cannon 1741 | -9/Exiles | Warned to stay clear of 0b10 Research branches 1782 | -9/Exiles | Met EX-DEC 1879 | -9/Exiles | Discovered new exit (range 14) 1896 | -9/Exiles | Identified exit to Mines 1899 | -9/Exiles | Left Exiles lab with YOLO Cannon 1899 | -9/Exiles | Entered Mines 2049 | -8/Mines | Discovered exit to Materials (range 14) 2079 | -8/Mines | Entered Materials 2079 | -8/Materials | Evolved 2 slots: Utility x2 2244 | -8/Materials | Lost 3 parts (1p1n1u) 2661 | -8/Materials | Discovered new exit (range 15) 2745 | -8/Materials | Core integrity fell below 50% 2748 | -8/Materials | Self-destructed Last Messages --------------- 02705_ R-06 Scavenger collects Lgt. Nuclear Core. 02706_ U-05 Engineer builds a Wall. 02709_ R-06 Scavenger collects Aluminum Leg. 02732_ Dropped Hrd. Light Armor Plating. 02736_ Connecting with Recycling Unit... 02736_ ALERT: Suspicious activity at Recycling Unit M001. Dispatching Investigation squad. 02744_ YOLO Cannon suddenly explodes. 02744_ Hrd. Light Armor Plating destroyed. 02744_ Arm. Treads destroyed. 02744_ Med. Storage Unit destroyed. 02744_ Core damaged (-216). 02744_ Recycling Unit disabled. 02744_ Lgt. Ion Engine tumbles out of recycling unit. 02744_ Aluminum Leg tumbles out of recycling unit. 02744_ Lgt. Ion Engine tumbles out of recycling unit. Map ----- +----------------------------------------------------+ | ???????????????????????# #???????????????? | | ???????????????????????# #???????????????? | | ???????????????????????# #???????????????? | | ????????????????######## #???????????????? | | ????????????????# ####+#####???????????????? | | ????????????????# """ + #?????????????????? | | # ??????????????# """ ## #?????????????????? | | # ?####?###?????# """ ## #?????????????????? | | ?# #?????# ## ########??????????? | | T?+ """ #?##### !## # !!#??????????? | | ?# """ ##"""""""""#### # ! #??????????? | | # ## """ # *%! # #??????????? | | # ## [# = * * + #??????????? | | # #" ?# %! = # #??????????? | | # ######### ### " # =#??????????? | | # %! #" "# / ########??????????? | | ##!! #?????????????????? | | = ##!! ] #?????????????????? | | ""##!! #?????????????????? | | % "##!! #?????????????????? | | ##** #########?????????????????? | | % "# ########??????????????????? | | * ""#### + *#??????????????????? | | ""#+#### ""#### #;r #??????????????????? | | " # " #; ] #??????????????????? | | "" # "]] ! #;!!@!= #??????????????????? | | "" "T" " w] #; * #??????????????????? | | ## ""#####;! #??????????????????? | | ?##########" """"#####;;;;g####????????????????? | | % gg #????????????????? | | < #????????????????? | | #????????????????? | | ######+#####"""""#+#############????????????????? | | ???????????##??? ???????????????????????????? | | ??????????????/// !?????????????????????????? | | ?????????????#/// #????????????????????????? | | ?????????????#/// """ #????????????????????????? | | ?????????????# """ #????????????????????????? | | ?????????????# """ #????????????????????????? | | ?????????????#[ #????????????????????????? | | ?????????????# ??#????????????????????????? | | ?????????????#######Y???????????????????????????? | | ????????????????????????????????????????????????? | | ????????????????????????????????????????????????? | | | | | | | | | | | | | +----------------------------------------------------+ Best States ------------- Heat Dissipation 31 Energy Generation 16 Energy Capacity 490 Matter Stores 300 Matter Capacity 300 Sight Range 16 Robot Scan Range 20 Terrain Scan Density 10 Additional Mass Support 9 Armor Coverage 150 Evasion (%) 55 Recoil Reduction 3 Item Schematics ----------------- None Robot Schematics ------------------ None Fabricated ------------ Nothing Alien Tech Used ----------------- None Achievements -------------- None Challenges ------------ None Game ------ Seed SpectralParticleFlakker Manual? 0 Play Time 00:35:05 Cumulative 15.4 hours Start 2024.04.11 @ 01:25:05 End 2024.04.11 @ 01:59:26 Sessions 1 Manual Loads 0 Difficulty Rogue Special Mode None Game No. 16 Rogue 16 Adventurer 0 Explorer 0 Win Type - Total 0 Types 0/0/0/0/0/0/0/0/0 Lore% 16 Gallery% 16 Achievement% 12 Wizard Run 0 Options --------- Layout 1 ASCII 0 Keyboard 0 Movement Mouse Keybinds 0 Fullscreen 1 Font 24/Smallcaps Map View 50x35 Zoom Use 0% Tactical HUD 1 Map Filters NONE Filters NONE Steam 1 RUN: e8bd2e90-9726-43a8-9beb-10d20a6178a9